fUST/lending_fUST_20241214
["ID","MTS","AMOUNT","RATE_DAILY","PERIOD"]
[345279089,1734132651673,-350.44,0.00027671,7]
[345279090,1734132651682,-488.0,0.00027671,7]
[345279091,1734132651691,-500.0,0.00027671,7]
[345279092,1734132651700,-500.0,0.00027671,7]
[345279093,1734132651709,-500.0,0.00027671,7]
[345279094,1734132651719,-500.0,0.00027671,7]
[345279095,1734132651728,-501.21,0.00027671,7]
[345279096,1734132651737,-500.0,0.00027671,7]
[345279097,1734132651747,-500.0,0.00027671,7]
[345279098,1734132651756,-500.0,0.00027671,7]
[345279099,1734132651766,-500.0,0.00027671,7]
[345279100,1734132651775,-500.0,0.00027671,7]
[345279101,1734132651784,-500.0,0.00027671,7]
[345279102,1734132651794,-500.0,0.00027671,7]
[345279103,1734132651803,-500.0,0.00027671,7]
[345279104,1734132651813,-369.12369951,0.00027671,7]
[345279105,1734132651822,-500.0,0.00027671,7]
[345279106,1734132651832,-500.0,0.00027671,7]
[345279107,1734132651841,-500.0,0.00027671,7]
[345279108,1734132651851,-500.0,0.00027671,7]
[345279109,1734132651860,-500.0,0.00027671,7]
[345279110,1734132651869,-500.0,0.00027671,7]
[345279111,1734132651878,-500.0,0.00027671,7]
[345279112,1734132651887,-500.0,0.00027671,7]
[345279113,1734132651896,-500.0,0.00027671,7]
[345279114,1734132651905,-500.0,0.00027671,7]
[345279115,1734132651915,-166.53156508,0.00027671,7]
[345279116,1734132651923,-529.14,0.00027671,7]
[345279117,1734132651932,-500.0,0.00027671,7]
[345279118,1734132651941,-500.0,0.00027671,7]
[345279119,1734132651950,-1756.85,0.00027671,7]
[345279120,1734132651960,-611.89,0.00027671,7]
[345279121,1734132651969,-500.0,0.00027671,7]
[345279122,1734132651978,-633.29,0.00027671,7]
[345279123,1734132651987,-500.0,0.00027671,7]
[345279124,1734132651996,-500.0,0.00027671,7]
[345279125,1734132652007,-500.0,0.00027671,7]
[345279126,1734132652016,-500.0,0.00027671,7]
[345279128,1734132652025,-1051.91,0.00027671,7]
[345279130,1734132652035,-500.0,0.00027671,7]
[345279131,1734132652044,-500.66945312,0.00027671,7]
[345279133,1734132652054,-500.0,0.00027671,7]
[345279134,1734132652063,-566.07975476,0.00027671,7]
[345279135,1734132652072,-500.0,0.00027671,7]
[345279136,1734132652081,-500.0,0.00027671,7]
[345279137,1734132652091,-500.0,0.00027671,7]
[345279138,1734132652100,-509.52500935,0.00027671,7]
[345279139,1734132652109,-500.0,0.00027671,7]
[345279140,1734132652118,-500.0,0.00027671,7]
[345279141,1734132652127,-500.0,0.00027671,7]
[345279142,1734132652137,-500.0,0.00027671,7]
[345279143,1734132652146,-500.0,0.00027671,7]
[345279144,1734132652155,-500.0,0.00027671,7]
[345279145,1734132652165,-256.25163811,0.00027671,7]
[345279146,1734132652174,-500.0,0.00027671,7]
[345279147,1734132652184,-500.0,0.00027671,7]
[345279148,1734132652194,-259.84813036,0.00027671,7]
[345279149,1734132652203,-697.97,0.00027671,7]
[345279150,1734132652213,-501.3277405,0.00027671,7]
[345279151,1734132652221,-500.0,0.00027671,7]
[345279152,1734132652231,-501.16075728,0.00027671,7]
[345279153,1734132652240,-500.0,0.00027671,7]
[345279154,1734132652251,-563.94,0.00027671,7]
[345279155,1734132652260,-838.12,0.00027671,7]
[345279156,1734132652275,-500.0,0.00027671,7]
[345279157,1734132652285,-500.0,0.00027671,7]
[345279158,1734132652294,-500.0,0.00027671,7]
[345279159,1734132652304,-500.0,0.00027671,7]
[345279160,1734132652315,-500.0,0.00027671,7]
[345279161,1734132652324,-500.0,0.00027671,7]
[345279162,1734132652333,-500.0,0.00027671,7]
[345279163,1734132652344,-500.0,0.00027671,7]
[345279164,1734132652353,-500.0,0.00027671,7]
[345279165,1734132652362,-500.0,0.00027671,7]
[345279166,1734132652372,-1000.0,0.00027671,5]
[345279167,1734132652381,-500.0,0.00027671,7]
[345279168,1734132652391,-500.0,0.00027671,7]
[345279169,1734132652400,-500.0,0.00027671,7]
[345279170,1734132652410,-500.0,0.00027671,7]
[345279171,1734132652420,-500.0,0.00027671,7]
[345279172,1734132652430,-1401.49,0.00027671,7]
[345279173,1734132652439,-500.0,0.00027671,7]
[345279174,1734132652448,-500.0,0.00027671,7]
[345279175,1734132652457,-500.0,0.00027671,7]
[345279176,1734132652467,-500.0,0.00027671,7]
[345279177,1734132652476,-500.0,0.00027671,7]
[345279178,1734132652486,-500.0,0.00027671,7]
[345279179,1734132652495,-500.0,0.00027671,7]
[345279180,1734132652506,-500.0,0.00027671,2]
[345279181,1734132652516,-502.34284281,0.00027671,7]
[345279182,1734132652525,-500.0,0.00027671,7]
[345279183,1734132652534,-500.0,0.00027671,7]
[345279184,1734132652544,-888.65,0.00027671,7]
[345279185,1734132652553,-500.0,0.00027671,7]
[345279186,1734132652563,-500.0,0.00027671,7]
[345279187,1734132652572,-500.0,0.00027671,7]
[345279188,1734132652581,-693.94,0.00027671,7]
[345279189,1734132652591,-500.0,0.00027671,7]
[345279190,1734132652600,-500.0,0.00027671,7]
[345279191,1734132652609,-500.0,0.00027671,7]
[345279192,1734132652618,-500.0,0.00027671,7]
[345279193,1734132652627,-500.0,0.00027671,7]
[345279194,1734132652637,-502.07607276,0.00027671,7]
[345279195,1734132652646,-305.04,0.00027671,7]
[345279196,1734132652656,-500.0,0.00027671,7]
[345279197,1734132652665,-500.0,0.00027671,7]
[345279198,1734132652675,-500.0,0.00027671,7]
[345279199,1734132652684,-500.0,0.00027671,7]
[345279200,1734132652693,-156.71341467,0.00027671,7]
[345279201,1734132652703,-500.0,0.00027671,7]
[345279202,1734132652712,-500.0,0.00027671,7]
[345279203,1734132652721,-500.0,0.00027671,7]
[345279204,1734132652730,-487.39,0.00027671,7]
[345279205,1734132652739,-500.0,0.00027671,7]
[345279206,1734132652750,-724.02,0.00027671,2]
[345279207,1734132652760,-500.0,0.00027671,7]
[345279208,1734132652770,-500.0,0.00027671,7]
[345279209,1734132652780,-500.0,0.00027671,7]
[345279210,1734132652790,-500.0,0.00027671,7]
[345279211,1734132652799,-500.0,0.00027671,7]
[345279212,1734132652808,-500.0,0.00027671,7]
[345279213,1734132652818,-500.0,0.00027671,7]
[345279214,1734132652827,-500.0,0.00027671,7]
[345279215,1734132652836,-500.0,0.00027671,7]
[345279216,1734132652845,-500.0,0.00027671,7]
[345279217,1734132652854,-500.0,0.00027671,7]
[345279218,1734132652864,-500.0,0.00027671,7]
[345279219,1734132652873,-432.74259191,0.00027671,7]
[345279220,1734132652883,-1769.51,0.00027671,7]
[345279221,1734132652892,-500.0,0.00027671,7]
[345279222,1734132652901,-596.66511881,0.00027671,7]
[345279223,1734132652911,-1174.99,0.00027671,7]
[345279224,1734132652920,-500.0,0.00027671,7]
[345279225,1734132652930,-505.71379676,0.00027671,7]
[345279226,1734132652939,-500.0,0.00027671,7]
[345279227,1734132652948,-500.0,0.00027671,7]
[345279228,1734132652957,-503.86632654,0.00027671,7]
[345279229,1734132652967,-604.48,0.00027671,7]
[345279230,1734132652977,-506.40747576,0.00027671,7]
[345279231,1734132652986,-500.0,0.00027671,7]
[345279232,1734132652996,-500.0,0.00027671,7]
[345279233,1734132653010,-500.0,0.00027671,7]
[345279234,1734132653019,-500.0,0.00027671,7]
[345279235,1734132653029,-500.0,0.00027671,7]
[345279236,1734132653038,-500.0,0.00027671,7]
[345279237,1734132653047,-500.0,0.00027671,7]
[345279238,1734132653056,-782.28,0.00027671,7]
[345279239,1734132653065,-500.0,0.00027671,7]
[345279240,1734132653075,-500.0,0.00027671,7]
[345279241,1734132653085,-827.81,0.00027671,7]
[345279242,1734132653094,-500.0,0.00027671,7]
[345279243,1734132653103,-500.0,0.00027671,7]
[345279244,1734132653112,-500.0,0.00027671,7]
[345279245,1734132653122,-500.0,0.00027671,7]
[345279246,1734132653131,-500.0,0.00027671,7]
[345279247,1734132653140,-500.0,0.00027671,7]
[345279248,1734132653149,-500.0,0.00027671,7]
[345279249,1734132653158,-999.24,0.00027671,7]
[345279250,1734132653167,-500.0,0.00027671,7]
[345279251,1734132653176,-507.89217324,0.00027671,7]
[345279252,1734132653185,-500.60449048,0.00027671,7]
[345279253,1734132653280,-500.0,0.00027671,7]
[345279254,1734132653290,-558.1442848,0.00027671,7]
[345279255,1734132653300,-500.0,0.00027671,7]
[345279256,1734132653311,-500.0,0.00027671,7]
[345279257,1734132653321,-202.43980459,0.00027671,7]
[345279258,1734132653332,-500.0,0.00027671,7]
[345279259,1734132653343,-500.0,0.00027671,7]
[345279260,1734132653353,-500.0,0.00027671,7]
[345279261,1734132653363,-500.0,0.00027671,7]
[345279262,1734132653373,-551.8,0.00027671,7]
[345279263,1734132653383,-500.0,0.00027671,7]
[345279264,1734132653392,-525.58,0.00027671,7]
[345279265,1734132653402,-500.0,0.00027671,7]
[345279266,1734132653413,-500.0,0.00027671,7]
[345279267,1734132653422,-500.0,0.00027671,7]
[345279268,1734132653433,-506.88162421,0.00027671,7]
[345279269,1734132653443,-500.0,0.00027671,7]
[345279270,1734132653453,-500.0,0.00027671,7]
[345279271,1734132653462,-500.0,0.00027671,7]
[345279272,1734132653472,-500.0,0.00027671,7]
[345279273,1734132653482,-500.0,0.00027671,7]
[345279274,1734132653492,-500.0,0.00027671,7]
[345279275,1734132653502,-500.0,0.00027671,7]
[345279276,1734132653511,-500.0,0.00027671,7]
[345279277,1734132653520,-500.0,0.00027671,7]
[345279278,1734132653529,-500.0,0.00027671,7]
[345279279,1734132653538,-500.0,0.00027671,7]
[345279280,1734132653547,-500.0,0.00027671,7]
[345279281,1734132653557,-1561.67,0.00027671,7]
[345279282,1734132653566,-500.0,0.00027671,7]
[345279283,1734132653575,-500.0,0.00027671,7]
[345279284,1734132653584,-500.0,0.00027671,7]
[345279285,1734132653594,-500.0,0.00027671,7]
[345279286,1734132653603,-500.0,0.00027671,7]
[345279287,1734132653612,-500.0,0.00027671,7]
[345279288,1734132653621,-500.0,0.00027671,7]
[345279289,1734132653631,-500.0,0.00027671,7]
[345279290,1734132653641,-500.0,0.00027671,7]
[345279291,1734132653650,-500.0,0.00027671,7]
[345279292,1734132653660,-500.0,0.00027671,7]
[345279293,1734132653670,-500.0,0.00027671,7]
[345279294,1734132653679,-500.0,0.00027671,7]
[345279295,1734132653689,-535.33556236,0.00027671,7]
[345279296,1734132653698,-500.0,0.00027671,7]
[345279297,1734132653707,-893.6,0.00027671,7]
[345279298,1734132653717,-500.0,0.00027671,7]
[345279299,1734132653727,-500.0,0.00027671,7]
[345279300,1734132653737,-256.91,0.00027671,7]
[345279301,1734132653746,-610.59,0.00027671,7]
[345279302,1734132653757,-500.0,0.00027671,7]
[345279303,1734132653766,-500.0,0.00027671,7]
[345279304,1734132653775,-500.0,0.00027671,7]
[345279305,1734132653785,-502.75971778,0.00027671,7]
[345279306,1734132653794,-500.0,0.00027671,7]
[345279307,1734132653803,-500.0,0.00027671,7]
[345279308,1734132653812,-500.0,0.00027671,7]
[345279309,1734132653821,-500.0,0.00027671,7]
[345279310,1734132653831,-500.0,0.00027671,7]
[345279311,1734132653840,-500.0,0.00027671,7]
[345279312,1734132653850,-500.0,0.00027671,7]
[345279313,1734132653859,-500.0,0.00027671,7]
[345279314,1734132653869,-500.0,0.00027671,7]
[345279315,1734132653878,-500.0,0.00027671,7]
[345279316,1734132653888,-808.2,0.00027671,7]
[345279317,1734132653897,-500.0,0.00027671,7]
[345279318,1734132653906,-500.0,0.00027671,7]
[345279319,1734132653916,-10093.24,0.00027671,7]
[345279320,1734132653925,-500.0,0.00027671,7]
[345279321,1734132653934,-592.07880072,0.00027671,7]
[345279322,1734132653943,-500.0,0.00027671,7]
[345279323,1734132653953,-500.0,0.00027671,7]
[345279324,1734132653962,-500.0,0.00027671,7]
[345279325,1734132653971,-405.45747123,0.00027671,7]
[345279326,1734132653980,-500.0,0.00027671,7]
[345279327,1734132653989,-1995.32,0.00027671,7]
[345279328,1734132654000,-500.0,0.00027671,7]
[345279329,1734132654009,-505.51,0.00027671,7]
[345279330,1734132654018,-257.55643766,0.00027671,7]
[345279331,1734132654027,-1033.88,0.00027671,7]
[345279332,1734132654036,-500.0,0.00027671,7]
[345279333,1734132654045,-500.0,0.00027671,7]
[345279334,1734132654054,-638.37,0.00027671,7]
[345279335,1734132654064,-500.0,0.00027671,7]
[345279336,1734132654073,-500.0,0.00027671,7]
[345279337,1734132654083,-500.0,0.00027671,7]
[345279338,1734132654091,-500.0,0.00027671,7]
[345279339,1734132654100,-519.72,0.00027671,7]
[345279340,1734132654109,-500.0,0.00027671,7]
[345279341,1734132654119,-500.0,0.00027671,7]
[345279342,1734132654127,-500.0,0.00027671,7]
[345279343,1734132654137,-500.0,0.00027671,7]
[345279344,1734132654147,-500.0,0.00027671,7]
[345279345,1734132654157,-516.77923292,0.00027671,7]
[345279346,1734132654166,-500.0,0.00027671,7]
[345279347,1734132654175,-500.0,0.00027671,7]
[345279348,1734132654184,-500.0,0.00027671,7]
[345279349,1734132654193,-7819.85,0.00027671,5]
[345279350,1734132654203,-618.5,0.00027671,7]
[345279351,1734132654212,-500.0,0.00027671,7]
[345279352,1734132654221,-500.0,0.00027671,7]
[345279353,1734132654230,-518.25,0.00027671,7]
[345279354,1734132654240,-433.67912129,0.00027671,7]
[345279355,1734132654251,-504.64623297,0.00027671,7]
[345279356,1734132654260,-177.0,0.00027671,7]
[345279357,1734132654273,-543.22,0.00027671,7]
[345279358,1734132654283,-502.32251142,0.00027671,7]
[345279359,1734132654292,-500.0,0.00027671,2]
[345279360,1734132654302,-500.0,0.00027671,7]
[345279361,1734132654312,-500.0,0.00027671,7]
[345279362,1734132654322,-500.0,0.00027671,7]
[345279363,1734132654332,-180.10242163,0.00027671,7]
[345279364,1734132654342,-500.0,0.00027671,7]
[345279365,1734132654351,-502.43437966,0.00027671,7]
[345279366,1734132654360,-500.0,0.00027671,7]
[345279367,1734132654370,-467.82046554,0.00027671,7]
[345279368,1734132654379,-639.72481799,0.00027671,7]
[345279369,1734132654388,-500.0,0.00027671,7]
[345279370,1734132654398,-500.0,0.00027671,7]
[345279371,1734132654409,-500.0,0.00027671,7]
[345279372,1734132654418,-500.0,0.00027671,7]
[345279373,1734132654428,-527.88,0.00027671,7]
[345279374,1734132654437,-1479.73,0.00027671,7]
[345279375,1734132654446,-500.0,0.00027671,7]
[345279376,1734132654456,-500.0,0.00027671,7]
[345279377,1734132654466,-500.0,0.00027671,7]
[345279378,1734132654475,-500.0,0.00027671,7]
[345279379,1734132654485,-500.0,0.00027671,7]
[345279380,1734132654494,-1746.48,0.00027671,7]
[345279381,1734132654504,-500.0,0.00027671,7]
[345279382,1734132654513,-500.0,0.00027671,7]
[345279383,1734132654522,-888.34,0.00027671,7]
[345279384,1734132654531,-501.78462504,0.00027671,7]
[345279385,1734132654540,-500.0,0.00027671,7]
[345279386,1734132654550,-755.75,0.00027671,7]
[345279387,1734132654559,-545.82641374,0.00027671,7]
[345279388,1734132654568,-500.0,0.00027671,7]
[345279389,1734132654579,-500.0,0.00027671,7]
[345279390,1734132654588,-500.0,0.00027671,7]
[345279391,1734132654597,-500.0,0.00027671,7]
[345279392,1734132654606,-504.76687204,0.00027671,7]
[345279393,1734132654616,-1909.88,0.00027671,7]
[345279394,1734132654625,-1942.24,0.00027671,7]
[345279395,1734132654635,-500.0,0.00027671,7]
[345279396,1734132654644,-500.0,0.00027671,7]
[345279397,1734132654653,-500.0,0.00027671,7]
[345279398,1734132654663,-339.63037017,0.00027671,7]
[345279399,1734132654672,-500.0,0.00027671,7]
[345279400,1734132654681,-500.0,0.00027671,7]
[345279401,1734132654691,-500.0,0.00027671,7]
[345279402,1734132654700,-501.00894859,0.00027671,7]
[345279403,1734132654709,-500.0,0.00027671,7]
[345279404,1734132654718,-500.0,0.00027671,7]
[345279405,1734132654727,-500.0,0.00027671,7]
[345279406,1734132654737,-500.0,0.00027671,7]
[345279407,1734132654747,-777.47,0.00027671,7]
[345279408,1734132654757,-502.60136441,0.00027671,7]
[345279409,1734132654767,-500.0,0.00027671,7]
[345279410,1734132654777,-645.06,0.00027671,7]
[345279411,1734132654786,-500.0,0.00027671,7]
[345279412,1734132654795,-500.0,0.00027671,7]
[345279413,1734132654805,-500.0,0.00027671,7]
[345279414,1734132654815,-500.0,0.00027671,7]
[345279415,1734132654824,-500.0,0.00027671,7]
[345279416,1734132654833,-500.0,0.00027671,7]
[345279417,1734132654843,-500.0,0.00027671,7]
[345279418,1734132654852,-631.43,0.00027671,7]
[345279419,1734132654862,-500.0,0.00027671,7]
[345279420,1734132654871,-638.29,0.00027671,7]
[345279421,1734132654881,-500.0,0.00027671,7]
[345279422,1734132654890,-500.0,0.00027671,7]
[345279423,1734132654900,-500.0,0.00027671,7]
[345279424,1734132654909,-501.71155572,0.00027671,7]
[345279425,1734132654918,-500.0,0.00027671,7]
[345279426,1734132654927,-500.0,0.00027671,7]
[345279427,1734132654937,-500.0,0.00027671,7]
[345279428,1734132654946,-500.0,0.00027671,7]
[345279429,1734132654956,-500.0,0.00027671,7]
[345279430,1734132654964,-349.61181221,0.00027671,7]
[345279431,1734132654974,-500.0,0.00027671,7]
[345279432,1734132654984,-500.0,0.00027671,7]
[345279433,1734132654993,-500.0,0.00027671,7]
[345279434,1734132655003,-272.35152819,0.00027671,2]
[345279435,1734132655012,-500.0,0.00027671,7]
[345279436,1734132655021,-612.9,0.00027671,7]
[345279437,1734132655030,-500.0,0.00027671,7]
[345279438,1734132655039,-500.0,0.00027671,7]
[345279439,1734132655048,-500.0,0.00027671,7]
[345279440,1734132655057,-510.4,0.00027671,7]
[345279441,1734132655066,-200.95201779,0.00027671,7]
[345279442,1734132655076,-500.0,0.00027671,7]
[345279443,1734132655084,-500.0,0.00027671,7]
[345279444,1734132655094,-500.0,0.00027671,7]
[345279445,1734132655104,-1231.72,0.00027671,7]
[345279446,1734132655113,-500.0,0.00027671,7]
[345279447,1734132655125,-500.0,0.00027671,7]
[345279448,1734132655135,-501.88821673,0.00027671,7]
[345279449,1734132655223,-520.08887411,0.00027671,7]
[345279450,1734132655232,-500.0,0.00027671,7]
[345279451,1734132655242,-500.0,0.00027671,7]
[345279452,1734132655253,-174.94882,0.00027671,2]
[345279453,1734132655263,-174.94882,0.00027671,120]
[345279454,1734132655276,-243.11292,0.00027726,2]
[345279455,1734132655285,-638.959517,0.00027803,15]
[345279456,1734132655295,-2370.0,0.00027827,2]
[345279457,1734132655304,-2158.0,0.00027827,2]
[345279458,1734132655314,-1371.04956872,0.00027894,2]
[345279459,1734132655324,-300.0,0.000279,13]
[345279460,1734132655333,-1023.78806786,0.00027921,5]
[345279461,1734132655343,-502.23878386,0.00027921,5]
[345279462,1734132655353,-1000.0,0.00027921,5]
[345279463,1734132655363,-1000.0,0.00027921,5]
[345279464,1734132655373,-500.0,0.00027945,7]
[345279465,1734132655383,-500.0,0.00027945,7]
[345279466,1734132655392,-500.0,0.00027945,7]
[345279467,1734132655402,-589.19,0.00027945,7]
[345279468,1734132655411,-500.0,0.00027945,7]
[345279469,1734132655420,-500.0,0.00027945,7]
[345279470,1734132655430,-500.0,0.00027945,7]
[345279471,1734132655439,-500.0,0.00027945,7]
[345279472,1734132655449,-500.0,0.00027945,7]
[345279473,1734132655459,-500.0,0.00027945,7]
[345279474,1734132655468,-500.0,0.00027945,7]
[345279475,1734132655478,-500.0,0.00027945,7]
[345279476,1734132655488,-500.0,0.00027945,7]
[345279477,1734132655497,-500.0,0.00027945,7]
[345279478,1734132655507,-500.0,0.00027945,7]
[345279479,1734132655516,-500.0,0.00027945,7]
[345279480,1734132655526,-500.0,0.00027945,7]
[345279481,1734132655535,-1012.87,0.00027945,7]
[345279482,1734132655544,-500.0,0.00027945,7]
[345279483,1734132655554,-500.0,0.00027945,7]
[345279484,1734132655563,-500.0,0.00027945,7]
[345279485,1734132655572,-686.54,0.00027945,7]
[345279486,1734132655581,-500.0,0.00027945,7]
[345279487,1734132655591,-1000.0,0.00027945,7]
[345279488,1734132655600,-500.0,0.00027945,7]
[345279489,1734132655609,-501.75275309,0.00027945,7]
[345279490,1734132655619,-500.0,0.00027945,7]
[345279491,1734132655628,-714.68,0.00027945,7]
[345279492,1734132655638,-398.74554938,0.00027945,7]
[345279493,1734132655647,-500.0,0.00027945,7]
[345279494,1734132655656,-500.0,0.00027945,7]
[345279495,1734132655666,-500.0,0.00027945,7]
[345279496,1734132655675,-500.0,0.00027945,7]
[345279497,1734132655685,-180.7588086,0.00027945,7]
[345279498,1734132655695,-500.0,0.00027945,7]
[345279499,1734132655704,-500.0,0.00027945,7]
[345279500,1734132655714,-500.0,0.00027945,7]
[345279501,1734132655723,-388.5,0.00027945,7]
[345279502,1734132655733,-500.0,0.00027945,7]
[345279503,1734132655743,-500.0,0.00027945,7]
[345279504,1734132655753,-500.0,0.00027945,7]
[345279505,1734132655763,-500.0,0.00027945,7]
[345279506,1734132655772,-416.38,0.00027945,7]
[345279507,1734132655781,-500.0,0.00027945,7]
[345279508,1734132655790,-177.79,0.00027945,7]
[345279509,1734132655800,-500.0,0.00027945,7]
[345279510,1734132655810,-500.0,0.00027945,7]
[345279511,1734132655819,-166.64,0.00027945,7]
[345279512,1734132655828,-312.62648501,0.00027945,7]
[345279513,1734132655840,-500.0,0.00027945,7]
[345279514,1734132655852,-500.0,0.00027945,7]
[345279515,1734132655862,-257.49,0.00027945,7]
[345279516,1734132655872,-500.0,0.00027945,7]
[345279517,1734132655882,-333.71,0.00027945,7]
[345279518,1734132655892,-500.0,0.00027945,7]
[345279519,1734132655901,-500.0,0.00027945,7]
[345279520,1734132655911,-1756.85,0.00027945,7]
[345279521,1734132655920,-500.0,0.00027945,7]
[345279522,1734132655930,-504.21938712,0.00027945,7]
[345279523,1734132655939,-500.0,0.00027945,7]
[345279524,1734132655949,-500.0,0.00027945,7]
[345279525,1734132655959,-500.0,0.00027945,7]
[345279526,1734132655968,-1051.91,0.00027945,7]
[345279527,1734132655978,-500.0,0.00027945,7]
[345279528,1734132655987,-500.0,0.00027945,7]
[345279529,1734132655997,-500.0,0.00027945,7]
[345279530,1734132656007,-500.0,0.00027945,7]
[345279531,1734132656017,-502.31803027,0.00027945,7]
[345279532,1734132656026,-172.2370951,0.00027945,7]
[345279533,1734132656035,-500.0,0.00027945,7]
[345279534,1734132656045,-591.74382194,0.00027945,7]
[345279535,1734132656055,-514.65930622,0.00027945,7]
[345279536,1734132656065,-501.84256691,0.00027945,7]
[345279537,1734132656075,-500.0,0.00027945,7]
[345279538,1734132656085,-697.97,0.00027945,7]
[345279539,1734132656095,-500.0,0.00027945,7]
[345279540,1734132656104,-500.0,0.00027945,7]
[345279541,1734132656114,-563.94,0.00027945,7]
[345279542,1734132656123,-838.12,0.00027945,7]
[345279543,1734132656133,-500.0,0.00027945,7]
[345279544,1734132656142,-502.12876841,0.00027945,7]
[345279545,1734132656152,-0.11289794,0.00027945,7]
[345279546,1734132656303,-377.62710206,0.00027945,7]
[345279547,1734132656314,-500.0,0.00027945,7]
[345279548,1734132656324,-500.0,0.00027945,7]
[345279549,1734132656335,-174.47384008,0.00027945,7]
[345279550,1734132656346,-617.71671298,0.00027945,7]
[345279551,1734132656355,-500.0,0.00027945,7]
[345279552,1734132656365,-225.44,0.00027945,7]
[345279553,1734132656375,-500.0,0.00027945,7]
[345279554,1734132656385,-877.80598657,0.00027945,5]
[345279555,1734132656395,-367.3,0.00027945,7]
[345279556,1734132656405,-500.0,0.00027945,7]
[345279557,1734132656415,-230.40377158,0.00027945,7]
[345279558,1734132656432,-269.59622842,0.00027945,7]
[345279559,1734132656442,-216.73,0.00027945,7]
[345279560,1734132656452,-500.0,0.00027945,7]
[345279561,1734132656461,-1401.49,0.00027945,7]
[345279562,1734132656471,-348.23,0.00027945,7]
[345279563,1734132656480,-500.0,0.00027945,7]
[345279564,1734132656490,-501.48711927,0.00027945,7]
[345279565,1734132656501,-500.0,0.00027945,7]
[345279566,1734132656511,-500.0,0.00027945,7]
[345279567,1734132656521,-500.0,0.00027945,7]
[345279568,1734132656530,-500.0,0.00027945,7]
[345279569,1734132656540,-500.0,0.00027945,7]
[345279570,1734132656549,-500.0,0.00027945,7]
[345279571,1734132656559,-888.65,0.00027945,7]
[345279572,1734132656568,-500.0,0.00027945,7]
[345279573,1734132656578,-500.0,0.00027945,7]
[345279574,1734132656587,-500.32,0.00027945,7]
[345279575,1734132656597,-693.94,0.00027945,7]
[345279576,1734132656607,-500.0,0.00027945,7]
[345279577,1734132656617,-437.23,0.00027945,7]
[345279578,1734132656626,-500.0,0.00027945,7]
[345279579,1734132656636,-505.45699316,0.00027945,7]
[345279580,1734132656646,-500.0,0.00027945,7]
[345279581,1734132656655,-305.04,0.00027945,7]
[345279582,1734132656665,-500.0,0.00027945,7]
[345279583,1734132656675,-500.0,0.00027945,7]
[345279584,1734132656685,-500.0,0.00027945,7]
[345279585,1734132656695,-500.0,0.00027945,7]
[345279586,1734132656705,-500.0,0.00027945,7]
[345279587,1734132656716,-500.0,0.00027945,7]
[345279588,1734132656725,-500.0,0.00027945,7]
[345279589,1734132656735,-502.4820053,0.00027945,7]
[345279590,1734132656745,-500.0,0.00027945,7]
[345279591,1734132656756,-500.0,0.00027945,7]